bitfinex/quotes_BTCUSD_20251124
["timestamp","ask_amount","ask_price","bid_price","bid_amount"]
[1764002866621,0.03144,87737.0,87716.0,0.02865042]
[1764002866833,0.03144,87737.0,87736.0,0.01]
[1764002868043,0.02279929,87744.0,87736.0,0.01]
[1764002868177,0.0103872,87750.0,87726.0,0.01139912]
[1764002868178,0.03476,87745.0,87732.0,0.01139834]
[1764002868383,0.0103872,87750.0,87733.0,0.02279643]
[1764002868384,0.00999999,87740.0,87733.0,0.02279643]
[1764002868726,0.78101938,87760.0,87733.0,0.02279643]
[1764002868727,0.78101938,87760.0,87734.0,0.02279617]
[1764002868962,0.78113542,87760.0,87759.0,0.01]
[1764002869344,0.89008542,87760.0,87759.0,0.01]
[1764002870711,1.21308542,87760.0,87759.0,0.01]
[1764002871133,1.21582338,87760.0,87759.0,0.01]
[1764002871348,1.21682338,87760.0,87759.0,0.01]
[1764002871747,0.323,87759.0,87745.0,0.01]
[1764002871921,0.04379,87746.0,87745.0,0.01]
[1764002872775,0.10895,87746.0,87745.0,0.01]
[1764002874850,0.43195,87746.0,87745.0,0.01]
[1764002876001,0.323,87746.0,87745.0,0.01]
[1764002876195,0.323,87746.0,87732.0,0.03419503]
[1764002876196,1.18997312,87755.0,87754.0,0.01]
[1764002876412,0.53713652,87755.0,87754.0,0.01]
[1764002876628,0.43195,87755.0,87754.0,0.01]
[1764002877133,0.323,87755.0,87754.0,0.01]
[1764002877334,0.324,87755.0,87754.0,0.01]
[1764002877873,0.00358254,87755.0,87754.0,0.01]
[1764002878292,0.00358254,87755.0,87754.0,0.02166]
[1764002880296,0.00358254,87755.0,87754.0,0.01]
[1764002880756,0.11253254,87755.0,87754.0,0.01]
[1764002880973,0.11253254,87755.0,87737.0,0.22795371]
[1764002880974,0.11253254,87755.0,87753.0,0.01]
[1764002881187,0.06516,87754.0,87753.0,0.01]
[1764002881390,0.43195,87754.0,87753.0,0.01]
[1764002882026,0.001,87755.0,87748.0,0.01139627]
[1764002882240,0.01011604,87760.0,87759.0,0.01]
[1764002884217,0.03476,87794.0,87768.0,0.01139367]
[1764002884419,0.03476,87794.0,87793.0,0.01]
[1764002884420,0.034876,87794.0,87793.0,0.01]
[1764002884599,0.000116,87794.0,87793.0,0.01]
[1764002885002,0.000116,87794.0,87793.0,0.01154]
[1764002885824,0.000116,87794.0,87793.0,0.01308]
[1764002886244,0.000116,87794.0,87793.0,0.01]
[1764002886444,0.000116,87794.0,87793.0,0.01836]
[1764002886865,0.00391034,87794.0,87793.0,0.01736]
[1764002887271,0.00391034,87794.0,87793.0,0.01836]
[1764002887527,0.00391034,87794.0,87793.0,0.0199]
[1764002888211,0.00391034,87794.0,87793.0,0.011]
[1764002888407,0.323,87793.0,87782.0,0.01]
[1764002888619,0.09782652,87789.0,87760.0,0.00736]
[1764002888819,0.09782652,87789.0,87784.0,0.01]
[1764002889037,0.38816,87788.0,87784.0,0.01]
[1764002889252,0.000116,87794.0,87793.0,0.01]
[1764002889425,0.06516,87788.0,87787.0,0.01]
[1764002889876,0.10895,87788.0,87787.0,0.01]
[1764002890007,0.10895,87788.0,87760.0,0.00736]
[1764002890209,0.38816,87787.0,87786.0,0.01]
[1764002890420,0.43195,87787.0,87786.0,0.01]
[1764002890987,0.43195,87787.0,87784.0,0.01]
[1764002891193,0.38816,87786.0,87784.0,0.01]
[1764002891394,0.36679,87785.0,87784.0,0.01]
[1764002891613,0.43195,87785.0,87784.0,0.01]
[1764002892433,0.323,87793.0,87792.0,0.01]
[1764002892992,0.323,87793.0,87784.0,0.01]
[1764002892993,0.46461652,87793.0,87784.0,0.01]
[1764002893203,0.04379,87767.0,87755.0,0.00736]
[1764002893405,0.07855,87767.0,87766.0,0.01]
[1764002893611,0.06587,87766.0,87764.0,0.01]
[1764002893905,0.36474,87765.0,87764.0,0.01]
[1764002894256,0.43350336,87765.0,87764.0,0.01]
[1764002895477,0.11050336,87765.0,87764.0,0.01]
[1764002895887,0.00289336,87765.0,87764.0,0.01]
[1764002896083,0.00289336,87765.0,87764.0,0.01814]
[1764002896575,0.00289336,87765.0,87764.0,0.01]
[1764002897511,0.00289336,87765.0,87764.0,0.03278838]
[1764002897711,0.00289336,87765.0,87764.0,0.01]
[1764002898128,0.00289336,87765.0,87764.0,0.01814]
[1764002898304,0.00289336,87765.0,87764.0,0.04092838]
[1764002898735,0.00289336,87765.0,87764.0,0.01]
[1764002901310,0.00289336,87765.0,87736.0,0.01139782]
[1764002901311,0.323,87764.0,87756.0,0.01]
[1764002901625,0.43350336,87765.0,87756.0,0.00011604]
[1764002901626,0.323,87757.0,87756.0,0.00011604]
[1764002901856,0.36474,87757.0,87756.0,0.00011604]
[1764002902030,0.43061,87757.0,87756.0,0.00011604]
[1764002902235,0.43797,87757.0,87741.0,0.01]
[1764002902437,0.09782652,87744.0,87741.0,0.01]
[1764002902638,0.04174,87742.0,87741.0,0.01]
[1764002903049,0.43061,87742.0,87741.0,0.01]
[1764002903976,1.02219857,87751.0,87729.0,0.01139873]
[1764002904175,0.323,87750.0,87749.0,0.01]
[1764002904403,0.38887,87750.0,87748.0,0.01]
[1764002904575,0.43061,87749.0,87748.0,0.01]
[1764002905380,2.473671,87749.0,87739.0,0.01]
[1764002905576,2.473671,87749.0,87701.0,0.14846176]
[1764002905577,0.0311,87722.0,87721.0,0.01]
[1764002905974,0.13871,87722.0,87721.0,0.01]
[1764002906419,0.13871,87722.0,87701.0,0.00826]
[1764002906627,0.95632857,87720.0,87719.0,0.01]
[1764002906924,0.13871,87722.0,87721.0,0.01]
[1764002907141,0.0311,87722.0,87721.0,0.01]
[1764002907345,0.03265633,87722.0,87721.0,0.01]
[1764002907559,0.14026633,87722.0,87721.0,0.01]
[1764002907697,0.14126633,87722.0,87721.0,0.01]
[1764002907895,0.14126633,87722.0,87716.0,0.01]
[1764002908112,0.0311,87702.0,87701.0,0.01038721]
[1764002908307,0.46171,87702.0,87701.0,0.00038721]
[1764002908564,0.46171,87702.0,87670.0,0.0004]
[1764002908565,0.323,87701.0,87670.0,0.0004]
[1764002908768,0.38887,87701.0,87688.0,0.01]
[1764002908910,0.323,87697.0,87688.0,0.01]
[1764002909110,0.07284,87689.0,87688.0,0.01]
[1764002910167,0.13871,87689.0,87688.0,0.01]
[1764002911521,0.07284,87689.0,87688.0,0.01]
[1764002911720,0.0311,87689.0,87688.0,0.01]
[1764002912212,0.13971,87689.0,87687.0,0.01]
[1764002912382,0.13971,87689.0,87688.0,0.01]
[1764002913133,0.0321,87689.0,87688.0,0.01]
[1764002913491,0.0311,87689.0,87688.0,0.01]
[1764002913897,0.323,87686.0,87670.0,0.00051581]
[1764002914124,0.04174,87671.0,87670.0,0.00051581]
[1764002914523,0.43061,87671.0,87670.0,0.00051581]
[1764002914928,0.323,87657.0,87650.0,0.0004]
[1764002915128,0.04174,87651.0,87650.0,0.00078735]
[1764002915505,0.43061,87651.0,87650.0,0.00078735]
[1764002916127,0.43061,87651.0,87580.0,0.97632855]
[1764002916128,0.323,87646.0,87605.0,0.001]
[1764002916496,0.0311,87626.0,87606.0,0.00916]
[1764002916711,0.95632857,87640.0,87607.0,0.03018922]
[1764002916950,0.323,87639.0,87638.0,0.01]
[1764002917147,0.06587,87648.0,87596.0,0.22832024]
[1764002917148,0.00999999,87640.0,87596.0,0.22832024]
[1764002917277,0.95632857,87610.0,87609.0,0.01]
[1764002917482,0.323,87618.0,87617.0,0.01]
[1764002917681,0.323,87618.0,87610.0,0.00736]
[1764002918021,0.323,87618.0,87617.0,0.01]
[1764002918439,0.323,87618.0,87559.0,0.00916]
[1764002918440,0.04174,87611.0,87559.0,0.00916]
[1764002918642,0.323,87584.0,87575.0,0.00357977]
[1764002919047,0.0311,87617.0,87583.0,0.0602]
[1764002919261,0.0311,87617.0,87584.0,0.03019522]
[1764002919501,0.0311,87617.0,87616.0,0.01]
[1764002919887,0.0311,87617.0,87575.0,0.00350464]
[1764002919888,2.0,87615.0,87591.0,0.01]
[1764002920088,2.0,87615.0,87575.0,0.00350464]
[1764002920089,0.07284,87576.0,87575.0,0.00350464]
[1764002920321,2.0,87603.0,87575.0,0.00350464]
[1764002920529,0.95632857,87590.0,87589.0,0.01]
[1764002920749,0.95632857,87599.0,87596.0,0.01]
[1764002920943,2.0,87602.0,87590.0,0.01]
[1764002921151,0.04174,87576.0,87575.0,0.00357977]
[1764002921353,0.07284,87576.0,87575.0,0.01357977]
[1764002921551,0.13871,87576.0,87575.0,0.00357977]
[1764002921754,0.13871,87576.0,87575.0,0.01357977]
[1764002921962,0.13871,87576.0,87575.0,0.00357977]
[1764002923004,0.0311,87576.0,87575.0,0.01357977]
[1764002923160,0.0311,87583.0,87582.0,0.01]
[1764002923364,0.0311,87583.0,87575.0,0.00357977]
[1764002923365,0.0311,87583.0,87581.0,0.01]
[1764002923921,0.13864652,87582.0,87575.0,0.00357977]
[1764002924119,0.09069,87583.0,87575.0,0.00357977]
[1764002924120,0.04082,87576.0,87575.0,0.00357977]
[1764002924390,0.04082,87576.0,87575.0,0.01357977]
[1764002924620,0.436561,87576.0,87575.0,0.00357977]
[1764002924796,0.436561,87576.0,87572.0,0.0003434]
[1764002924797,0.323,87575.0,87572.0,0.0003434]
[1764002924938,0.04082,87573.0,87572.0,0.00045956]
[1764002925138,0.36382,87573.0,87572.0,0.00045956]
[1764002925354,0.10041,87573.0,87572.0,0.00045956]
[1764002925969,0.42341,87573.0,87572.0,0.00045956]
[1764002926171,2.42341,87573.0,87572.0,0.00045956]
[1764002926774,0.42341,87573.0,87572.0,0.00045956]
[1764002927266,0.42341,87573.0,87572.0,0.01045956]
[1764002927478,0.04182,87573.0,87572.0,0.01045956]
[1764002927740,0.001,87573.0,87572.0,0.01045956]
[1764002927975,0.09258,87583.0,87582.0,0.01]
[1764002928213,0.0311,87583.0,87582.0,0.0174]
[1764002929057,0.06148,87595.0,87582.0,0.0174]
[1764002929058,0.03117,87589.0,87588.0,0.01]
[1764002929265,0.03117,87589.0,87572.0,0.00045956]
[1764002929491,0.03117,87589.0,87588.0,0.0074]
[1764002929669,0.03117,87589.0,87588.0,0.0174]
[1764002929868,0.07269,87589.0,87588.0,0.0174]
[1764002930196,0.323,87588.0,87572.0,0.00045956]
[1764002930307,0.09782652,87580.0,87573.0,0.01]
[1764002930511,0.09782652,87580.0,87572.0,0.00045956]
[1764002930712,0.04152,87573.0,87572.0,0.00045956]
[1764002930935,0.04152,87573.0,87572.0,0.01045956]
[1764002931345,0.103,87573.0,87572.0,0.01045956]
[1764002931546,0.103,87573.0,87572.0,0.00045956]
[1764002931547,0.426,87573.0,87572.0,0.00045956]
[1764002932799,0.426,87573.0,87540.0,0.0004]
[1764002932800,2.0,87567.0,87540.0,0.0004]
[1764002933013,0.38448,87572.0,87550.0,0.00078802]
[1764002933014,0.04152,87551.0,87550.0,0.00078802]
[1764002933238,0.04152,87551.0,87550.0,0.01078802]
[1764002934729,0.103,87551.0,87550.0,0.01078802]
[1764002934950,0.103,87551.0,87550.0,0.01131857]
[1764002935165,0.103,87551.0,87550.0,0.00131857]
[1764002936890,0.103,87551.0,87550.0,0.01131857]
[1764002937307,0.103,87551.0,87550.0,0.00131857]
[1764002938191,0.13417,87551.0,87550.0,0.00131857]
[1764002939091,0.01263928,87568.0,87550.0,0.00131857]
[1764002939092,0.03117,87561.0,87550.0,0.00131857]
[1764002939299,0.95632857,87560.0,87559.0,0.01]
[1764002939506,0.95632857,87560.0,87550.0,0.00078802]
[1764002939507,0.03117,87561.0,87550.0,0.00078802]
[1764002939669,0.03117,87561.0,87560.0,0.01]
[1764002940705,0.07269,87561.0,87560.0,0.01]
[1764002940953,0.13417,87561.0,87560.0,0.01]
[1764002941162,0.13417,87561.0,87550.0,0.00078802]
[1764002941163,0.13417,87561.0,87555.0,0.0074]
[1764002941372,0.03117,87561.0,87556.0,0.0074]
[1764002941574,0.03117,87573.0,87556.0,0.0074]
[1764002941777,0.0074,87608.0,87572.0,0.01]
[1764002941988,0.06148,87595.0,87581.0,0.01]
[1764002942243,0.09265,87589.0,87588.0,0.01]
[1764002942429,0.09265,87589.0,87577.0,0.01]
[1764002942576,0.07269,87551.0,87550.0,0.0004]
[1764002943188,0.103,87551.0,87550.0,0.00078802]
[1764002943413,0.103,87551.0,87550.0,0.01078802]
[1764002943620,0.103,87551.0,87550.0,0.00078802]
[1764002943813,0.03117,87552.0,87551.0,0.01]
[1764002944334,0.03117,87552.0,87550.0,0.00078802]
[1764002944335,0.03117,87559.0,87550.0,0.00078802]
[1764002944755,0.03117,87559.0,87555.0,0.01]
[1764002944977,0.03117,87566.0,87558.0,0.01]
[1764002945133,0.03117,87566.0,87565.0,0.01]
[1764002945342,0.03117,87566.0,87550.0,0.00078802]
[1764002945343,0.07269,87566.0,87559.0,0.00024965]
[1764002945542,0.07269,87566.0,87565.0,0.01]
[1764002945756,0.03117,87573.0,87559.0,0.00024965]
[1764002946023,0.06148,87599.0,87569.0,0.01141956]
[1764002946186,0.06148,87599.0,87588.0,0.01]
[1764002946187,0.95632857,87590.0,87588.0,0.01]
[1764002946385,0.05247483,87589.0,87588.0,0.01]
[1764002946590,0.15547483,87589.0,87588.0,0.01]
[1764002947224,0.15547483,87589.0,87562.0,0.0074]
[1764002947458,0.03117,87563.0,87562.0,0.00038802]
[1764002947600,0.03117,87563.0,87562.0,0.01038802]
[1764002947983,0.323,87571.0,87562.0,0.00038802]
[1764002947984,0.03117,87570.0,87562.0,0.00038802]
[1764002948368,0.02134899,87569.0,87567.0,0.01]
[1764002948611,0.03117,87570.0,87567.0,0.01]
[1764002948787,0.06148,87585.0,87576.0,0.01]
[1764002948992,0.02134784,87584.0,87583.0,0.01]
[1764002949762,0.323,87583.0,87577.0,0.01]
[1764002949965,0.323,87583.0,87578.0,0.0074]
[1764002949966,0.02134784,87582.0,87578.0,0.0074]
[1764002950161,0.02134784,87581.0,87578.0,0.0074]
[1764002950441,0.04152,87579.0,87578.0,0.0074]
[1764002950703,0.38587194,87579.0,87578.0,0.0074]
[1764002950860,0.426,87579.0,87578.0,0.0174]
[1764002951262,0.38587857,87579.0,87578.0,0.0174]
[1764002951694,0.04152,87579.0,87578.0,0.0174]
[1764002952140,0.323,87586.0,87578.0,0.0174]
[1764002952141,0.323,87586.0,87578.0,0.0074]
[1764002952360,0.103,87579.0,87578.0,0.0074]
[1764002952570,0.103,87579.0,87578.0,0.0174]
[1764002952571,0.12435768,87579.0,87578.0,0.0174]
[1764002953236,0.12435768,87579.0,87578.0,0.01]
[1764002954108,0.12435768,87579.0,87562.0,0.00038802]
[1764002954338,0.03117,87589.0,87565.0,0.0174]
[1764002954339,0.323,87571.0,87565.0,0.0174]
[1764002954543,0.323,87571.0,87568.0,0.01]
[1764002954748,0.08052495,87570.0,87565.0,0.01]
[1764002954967,0.03756,87566.0,87565.0,0.01]
[1764002955184,0.05892495,87566.0,87565.0,0.01]
[1764002955386,0.05892495,87566.0,87562.0,0.00038802]
[1764002955612,0.45838652,87563.0,87562.0,0.00038802]
[1764002955824,0.47975147,87563.0,87562.0,0.00038802]
[1764002956101,0.59101396,87563.0,87562.0,0.00038802]
[1764002956334,0.59101396,87563.0,87515.0,0.06826685]
[1764002956335,0.323,87549.0,87529.0,0.0074]
[1764002956542,0.03756,87541.0,87540.0,0.0104]
[1764002956977,0.09672,87541.0,87540.0,0.0104]
[1764002957194,0.00038627,87549.0,87548.0,0.01]
[1764002957842,0.03794627,87549.0,87548.0,0.01]
[1764002958045,0.00038627,87549.0,87548.0,0.01]
[1764002958258,0.09710627,87549.0,87548.0,0.01]
[1764002959444,0.09710627,87549.0,87540.0,0.0004]
[1764002959641,0.323,87541.0,87540.0,0.0104]
[1764002961066,0.41972,87541.0,87540.0,0.0104]
[1764002961285,0.38193886,87541.0,87540.0,0.0004]
[1764002961501,0.41972,87541.0,87540.0,0.0004]
[1764002962151,0.44109834,87541.0,87540.0,0.0004]
[1764002962383,0.41972,87541.0,87540.0,0.00099307]
[1764002962602,0.41972,87541.0,87540.0,0.01099307]
[1764002963022,0.323,87541.0,87540.0,0.01099307]
[1764002964126,0.36056,87541.0,87540.0,0.01099307]
[1764002964342,0.49319325,87541.0,87540.0,0.00099307]
[1764002964535,0.38193076,87541.0,87540.0,0.00099307]
[1764002964691,0.323,87541.0,87540.0,0.01099307]
[1764002965497,0.323,87541.0,87540.0,0.00099307]
[1764002965498,0.41972,87541.0,87540.0,0.00099307]
[1764002965921,0.47182249,87541.0,87540.0,0.00099307]
[1764002966122,0.37510249,87540.0,87522.0,0.0101]
[1764002966380,0.323,87531.0,87523.0,0.00736]
[1764002966728,0.06536,87524.0,87523.0,0.00736]
[1764002967412,0.12452,87524.0,87523.0,0.00736]
[1764002968179,0.12452,87524.0,87523.0,0.01736]
[1764002968382,0.12452,87524.0,87522.0,0.0001]
[1764002968548,0.09672,87523.0,87522.0,0.0001]
[1764002968759,0.03756,87523.0,87522.0,0.0001]
[1764002968974,0.0278,87524.0,87523.0,0.01]
[1764002969339,0.0278,87530.0,87529.0,0.01]
[1764002969930,0.00736,87554.0,87529.0,0.01]
[1764002969931,0.0278,87544.0,87529.0,0.00736]
[1764002970346,0.0278,87544.0,87543.0,0.01]
[1764002970462,0.00038627,87549.0,87548.0,0.01]
[1764002975150,0.00038627,87549.0,87548.0,0.01736]
[1764002975875,0.00038627,87549.0,87548.0,0.01]
[1764002976072,0.00038627,87549.0,87548.0,0.01736]
[1764002976449,0.323,87559.0,87548.0,0.01736]
[1764002976450,0.323,87559.0,87548.0,0.02114]
[1764002976701,0.0278,87587.0,87586.0,0.01]
[1764002976903,0.76439791,87600.0,87594.0,0.01]
[1764002976904,0.0278,87595.0,87594.0,0.01]
[1764002978598,0.323,87599.0,87594.0,0.01]
[1764002978835,0.0278,87601.0,87593.0,0.00736]
[1764002979042,0.05210249,87616.0,87608.0,0.01]
[1764002979173,0.3508,87609.0,87607.0,0.01]
[1764002979378,0.41972,87608.0,87607.0,0.01]
[1764002980128,0.36056,87608.0,87607.0,0.01]
[1764002980293,0.41972,87608.0,87607.0,0.01]
[1764002980490,0.03756,87608.0,87607.0,0.01]
[1764002980691,0.09672,87608.0,87607.0,0.01]
[1764002982098,0.09672,87608.0,87593.0,0.01]
[1764002982306,0.323,87602.0,87600.0,0.00736]
[1764002982492,0.323,87602.0,87600.0,0.00747635]
[1764002982633,0.09672,87601.0,87600.0,0.00747635]
[1764002983465,0.09672,87601.0,87600.0,0.01747635]
[1764002983828,0.09672,87601.0,87600.0,0.01011635]
[1764002985435,0.09672,87601.0,87600.0,0.00011635]
[1764002985436,0.47182249,87601.0,87600.0,0.00011635]
[1764002986254,0.4716852,87601.0,87600.0,0.00011635]
[1764002987139,0.36042271,87601.0,87600.0,0.01011635]
[1764002987339,0.323,87601.0,87600.0,0.01011635]
[1764002988589,0.35831,87601.0,87600.0,0.01011635]
[1764002988832,0.41356,87601.0,87600.0,0.01011635]
[1764002989499,0.35831,87601.0,87600.0,0.01011635]
[1764002991321,0.35831,87601.0,87600.0,0.01747635]
[1764002991537,0.41356,87601.0,87600.0,0.01747635]
[1764002991938,0.41356,87601.0,87600.0,0.00747635]
[1764002993263,0.41356,87601.0,87600.0,0.00011635]
[1764002994074,0.03531,87601.0,87600.0,0.01011635]
[1764002994289,0.09056,87601.0,87600.0,0.01011635]
[1764002994485,0.09056,87601.0,87600.0,0.00011635]
[1764002995138,0.14266249,87601.0,87600.0,0.00011635]
[1764002995352,0.46566249,87601.0,87600.0,0.00011635]
[1764003000370,0.46566249,87601.0,87551.0,0.01142191]
[1764003000371,0.51222874,87601.0,87542.0,0.01142308]
[1764003000578,0.76439791,87560.0,87545.0,0.01142269]
[1764003000791,0.323,87580.0,87570.0,0.01]
[1764003001011,0.323,87580.0,87558.0,0.01]
[1764003001012,0.323,87569.0,87558.0,0.01]
[1764003001224,0.323,87569.0,87533.0,0.4]
[1764003001225,0.76439791,87568.0,87539.0,0.23989248]
[1764003001431,0.76439791,87561.0,87559.0,0.01]
[1764003001616,0.0275,87570.0,87554.0,0.00736]
[1764003001617,0.05210249,87565.0,87554.0,0.00736]
[1764003001877,0.00011577,87561.0,87554.0,0.00736]
[1764003002085,0.00011577,87561.0,87554.0,0.01736]
[1764003002300,0.03531,87555.0,87524.0,0.22850746]
[1764003002515,0.76439791,87550.0,87533.0,0.00736]
[1764003002695,0.05525,87560.0,87533.0,0.00736]
[1764003002696,0.323,87559.0,87558.0,0.01]
[1764003003151,0.323,87559.0,87539.0,0.01142347]
[1764003003152,0.41356,87559.0,87555.0,0.01]
[1764003003320,0.41356,87559.0,87558.0,0.01]
[1764003003891,0.09056,87559.0,87550.0,0.00736]
[1764003004091,0.09782652,87555.0,87551.0,0.01]
[1764003004572,0.323,87557.0,87556.0,0.01]
[1764003004738,0.05525,87554.0,87553.0,0.01]
[1764003005264,0.323,87559.0,87558.0,0.01]
[1764003005458,0.323,87559.0,87545.0,0.00736]
[1764003005774,0.323,87554.0,87545.0,0.00736]
[1764003005977,0.05210249,87575.0,87545.0,0.00736]
[1764003005978,0.76439791,87560.0,87553.0,0.01]
[1764003006183,0.08275,87570.0,87553.0,0.01]
[1764003006184,0.323,87569.0,87560.0,0.01]
[1764003006486,0.79189791,87570.0,87560.0,0.01]
[1764003006709,0.0275,87570.0,87560.0,0.2384148]
[1764003006848,0.0275,87570.0,87560.0,0.01]
[1764003007038,0.98874961,87570.0,87560.0,0.01]
[1764003007937,0.0275,87574.0,87560.0,0.01]
[1764003008860,0.96124961,87570.0,87560.0,0.01]
[1764003009279,0.96124961,87570.0,87560.0,0.00974]
[1764003009952,0.96124961,87570.0,87560.0,0.01706]
[1764003012453,0.96124961,87570.0,87560.0,0.00974]
[1764003012658,0.05525,87568.0,87560.0,0.01706]
[1764003012830,0.03542577,87561.0,87560.0,0.00974]
[1764003013036,0.09067577,87561.0,87536.0,0.10151643]
[1764003013247,0.96124961,87550.0,87537.0,0.00732]
[1764003013453,0.96124961,87550.0,87549.0,0.00974]
[1764003013689,0.02758,87555.0,87554.0,0.00974]
[1764003014058,0.11268,87555.0,87554.0,0.00974]
[1764003014265,0.11268,87555.0,87553.0,0.00732]
[1764003014618,0.0851,87554.0,87553.0,0.00974]
[1764003014752,0.0851,87554.0,87553.0,0.01706]
[1764003014939,0.0851,87554.0,87532.0,0.00024976]
[1764003015142,0.05087,87553.0,87551.0,0.00974]
[1764003015341,0.03423,87552.0,87551.0,0.00974]
[1764003015537,0.03423,87552.0,87551.0,0.01706]
[1764003016260,0.0851,87552.0,87551.0,0.01706]
[1764003016437,0.0851,87552.0,87550.0,0.00974]
[1764003016644,0.03423,87552.0,87551.0,0.00732]
[1764003016875,0.03423,87552.0,87551.0,0.00974]
[1764003017077,0.02758,87555.0,87554.0,0.00974]
[1764003017756,0.43568,87555.0,87554.0,0.00974]
[1764003017967,0.11268,87555.0,87552.0,0.00974]
[1764003018179,0.02758,87555.0,87554.0,0.00974]
[1764003018539,0.06181,87555.0,87554.0,0.00974]
[1764003018705,0.11268,87555.0,87554.0,0.00974]
[1764003018901,0.11268,87555.0,87551.0,0.00732]
[1764003019108,0.03423,87552.0,87517.0,0.01142635]
[1764003019313,0.03423,87552.0,87541.0,0.00974]
[1764003019314,0.96124961,87542.0,87541.0,0.00974]
[1764003019531,1.01211961,87551.0,87548.0,0.00974]
[1764003019734,0.05087,87551.0,87548.0,0.00974]
[1764003019934,0.03423,87549.0,87548.0,0.00974]
[1764003020346,0.0851,87549.0,87548.0,0.00974]
[1764003020760,0.03423,87549.0,87548.0,0.00974]
[1764003021706,0.0851,87549.0,87548.0,0.00974]
[1764003021904,0.03423,87549.0,87548.0,0.00974]
[1764003022800,0.0851,87549.0,87548.0,0.00974]
[1764003024591,0.02758,87555.0,87554.0,0.00974]
[1764003025016,0.06181,87555.0,87545.0,0.00732]
[1764003025219,0.06181,87555.0,87554.0,0.00974]
[1764003025472,0.05087,87568.0,87547.0,0.22844772]
[1764003025702,0.05087,87568.0,87560.0,0.00974]
[1764003025866,0.02758,87567.0,87566.0,0.00974]
[1764003027094,0.06181,87567.0,87566.0,0.00974]
[1764003027333,0.00999999,87610.0,87566.0,0.03522]
[1764003027559,0.02758,87594.0,87584.0,0.05767]
[1764003027719,0.01223647,87587.0,87583.0,0.00732]
[1764003027930,0.37387,87593.0,87581.0,0.00939]
[1764003028120,0.98882961,87594.0,87566.0,0.06094]
[1764003028121,0.001,87567.0,87566.0,0.06094]
[1764003028318,0.001,87567.0,87566.0,0.06826]
[1764003028553,0.96124961,87591.0,87590.0,0.00939]
[1764003028778,0.96124961,87591.0,87572.0,0.01141917]
[1764003028779,0.02758,87594.0,87593.0,0.00939]
[1764003029212,0.02769624,87594.0,87593.0,0.00939]
[1764003030183,0.00011624,87594.0,87593.0,0.00939]
[1764003030650,0.00011624,87594.0,87593.0,0.27293874]
[1764003031057,0.00011624,87594.0,87593.0,0.04461]
[1764003031665,0.00011624,87594.0,87593.0,0.00939]
[1764003031923,0.00011624,87594.0,87593.0,0.00732]
[1764003031924,0.08521624,87594.0,87593.0,0.00732]
[1764003032537,0.08521624,87594.0,87584.0,0.00732]
[1764003032745,0.37387,87593.0,87587.0,0.00939]
[1764003032959,0.03423,87588.0,87587.0,0.00939]
[1764003033368,0.0851,87588.0,87587.0,0.00939]
[1764003034455,0.0851,87588.0,87562.0,0.4]
[1764003034694,0.323,87593.0,87557.0,0.02245]
[1764003034695,0.96124961,87580.0,87572.0,0.00939]
[1764003035105,0.02758,87573.0,87572.0,0.00939]
[1764003035309,0.323,87579.0,87572.0,0.00939]
[1764003035515,0.323,87579.0,87578.0,0.00939]
[1764003036128,0.02758,87581.0,87580.0,0.00939]
[1764003036536,0.43568,87581.0,87580.0,0.00939]
[1764003036996,0.323,87580.0,87575.0,0.01671]
[1764003037196,0.323,87580.0,87575.0,0.00732]
[1764003037438,0.03423,87576.0,87575.0,0.01671]
[1764003037707,0.03423,87576.0,87575.0,0.00939]
[1764003037918,0.03423,87576.0,87547.0,0.01142243]
[1764003037919,0.0851,87576.0,87566.0,0.00939]
[1764003038055,0.11268,87576.0,87572.0,0.00939]
[1764003038254,0.05087,87575.0,87572.0,0.00939]
[1764003038505,0.05087,87575.0,87564.0,0.00732]
[1764003038506,0.02758,87581.0,87571.0,0.02245]
[1764003038788,0.35058,87581.0,87571.0,0.02245]
[1764003039429,1.31182961,87581.0,87580.0,0.00939]
[1764003039652,0.35058,87581.0,87580.0,0.00939]
[1764003039895,0.38481,87581.0,87578.0,0.00939]
[1764003040138,0.03423,87572.0,87563.0,0.00939]
[1764003040355,0.03423,87572.0,87568.0,0.00939]
[1764003040598,0.05087,87571.0,87568.0,0.00939]
[1764003040830,0.06181,87569.0,87568.0,0.00939]
[1764003041258,0.06181,87569.0,87548.0,0.4]
[1764003041259,0.43568,87569.0,87548.0,0.4]
[1764003041471,0.11268,87569.0,87557.0,0.00939]
[1764003041686,0.05087,87568.0,87567.0,0.00939]
[1764003041933,0.4081,87568.0,87567.0,0.00939]
[1764003043333,0.03423,87568.0,87567.0,0.01]
[1764003043755,0.323,87571.0,87566.0,0.01828]
[1764003043934,0.96124961,87577.0,87566.0,0.01828]
[1764003043935,1.28424961,87577.0,87576.0,0.01]
[1764003044132,0.323,87577.0,87576.0,0.01]
[1764003044599,0.323,87576.0,87574.0,0.01]
[1764003044729,0.323,87576.0,87575.0,0.01]
[1764003045559,0.37214,87583.0,87575.0,0.01]
[1764003045725,0.37214,87583.0,87566.0,0.24667892]
[1764003045726,0.323,87583.0,87580.0,0.01]
[1764003046120,0.02758,87584.0,87546.0,0.08664256]
[1764003046121,0.323,87580.0,87546.0,0.08664256]
[1764003046351,0.96124961,87566.0,87557.0,0.00732]
[1764003046780,0.96124961,87566.0,87565.0,0.01]
[1764003047021,0.02758,87581.0,87565.0,0.01]
[1764003047022,0.96124961,87590.0,87565.0,0.03198]